[Event "Istanbul Open 2019"]
[Site "Istanbul"]
[Date "2019.08.28"]
[Round "4.11"]
[White "Akin, Yagiz Cinar"]
[Black "Mammadov, Sadig"]
[Result "0-1"]
[ECO "D11"]
[WhiteElo "1953"]
[BlackElo "2243"]
[Annotator "NA"]
[PlyCount "70"]
[EventDate "2019.08.26"]
[EventType "swiss"]
[EventCountry "TUR"]
[SourceTitle "playchess.com"]
[Source "ChessBase"]
[SourceQuality "1"]
[TimeControl "5400+30"]

1. g3 {[%emt 0:00:30]} Nf6 {[%emt 0:00:30]} 2. Bg2 {[%emt 0:00:00]} d5 {[%emt 0:00:30]} 3. c4 {[%emt 0:00:00]} c6 {[%emt 0:00:30]} 4. d4 {[%emt 0:00:30]} dxc4 {[%emt 0:00:30]} 5. Nf3 {[%emt 0:01:30]} Bf5 {[%emt 0:03:30]} 6. O-O {[%emt 0:04:30]} e6 {[%emt 0:03:30]} 7. Nc3 {[%emt 0:02:30]} Nbd7 {[%emt 0:11:30]} 8. Nh4 {[%emt 0:09:30]} Bg6 {[%emt 0:02:30]} 9. Nxg6 {[%emt 0:00:30]} hxg6 {[%emt 0:00:00]} 10. e4 {[%emt 0:00:30]} e5 {[%emt 0:09:00]} 11. d5 {[%emt 0:06:30]} Bc5 {[%emt 0:00:30]} 12. dxc6 {[%emt 0:05:30]} bxc6 {[%emt 0:00:30]} 13. Qe2 {[%emt 0:05:30]} Nb6 {[%emt 0:01:30]} 14. Rd1 {[%emt 0:02:30]} Bd4 {[%emt 0:06:30]} 15. Be3 {[%emt 0:00:30]} c5 {[%emt 0:00:30]} 16. Nd5 {[%emt 0:01:30]} O-O {[%emt 0:08:30]} 17. Nxb6 {[%emt 0:04:30]} Qxb6 {[%emt 0:00:30]} 18. Bxd4 {[%emt 0:00:30]} cxd4 {[%emt 0:00:30]} 19. Qxc4 {[%emt 0:00:30]} Rfc8 {[%emt 0:01:30]} 20. Qb3 {[%emt 0:02:30]} Qxb3 {[%emt 0:03:30]} 21. axb3 {[%emt 0:00:30]} Rc2 {[%emt 0:00:30]} 22. Ra5 {[%emt 0:02:30]} Rac8 {[%emt 0:05:30]} 23. Rxa7 {[%emt 0:00:30]} Rxb2 {[%emt 0:00:30]} 24. Re7 {[%emt 0:06:30]} Rcc2 {[%emt 0:05:30]} 25. Rxe5 {[%emt 0:03:30]} Rxf2 {[%emt 0:00:30]} 26. Bh3 {[%emt 0:02:30]} Rxh2 {[%emt 0:02:30]} 27. Bf1 {[%emt 0:00:00]} Nh5 {[%emt 0:01:30]} 28. Re8+ {[%emt 0:02:00]} Kh7 {[%emt 0:00:30]} 29. Rd3 {[%emt 0:00:30]} Rhc2 {[%emt 0:07:30]} 30. Rf3 {[%emt 0:04:30]} Rc3 {[%emt 0:01:30]} 31. Rxf7 {[%emt 0:01:30]} Rxg3+ {[%emt 0:00:30]} 32. Kh1 {[%emt 0:00:30]} Rg5 {[%emt 0:04:02]} 33. e5 {[%emt 0:04:30]} Ng3+ {[%emt 0:02:03]} 34. Kg1 {[%emt 0:00:00]} Nf5+ {[%emt 0:00:15]} 35. Kh1 {[%emt 0:00:00]} Rb1 {[%emt 0:00:59]} 0-1

[Event "Istanbul Open 2019"]
[Site "Istanbul"]
[Date "2019.08.28"]
[Round "4.12"]
[White "Yilmaz, Turhan"]
[Black "Sar, Can"]
[Result "0-1"]
[ECO "B23"]
[WhiteElo "2199"]
[BlackElo "2003"]
[Annotator "NA"]
[PlyCount "76"]
[EventDate "2019.08.26"]
[EventType "swiss"]
[EventCountry "TUR"]
[SourceTitle "playchess.com"]
[Source "ChessBase"]
[SourceQuality "1"]
[TimeControl "5400+30"]

1. e4 {[%emt 0:03:30]} c5 {[%emt 0:00:30]} 2. Nc3 {[%emt 0:00:30]} g6 {[%emt 0:00:30]} 3. d3 {[%emt 0:00:00]} Bg7 {[%emt 0:00:30]} 4. Be3 {[%emt 0:00:00]} d6 {[%emt 0:00:30]} 5. Qd2 {[%emt 0:00:30]} Nc6 {[%emt 0:01:30]} 6. h3 {[%emt 0:05:30]} e5 {[%emt 0:03:30]} 7. g4 {[%emt 0:07:30]} Nge7 {[%emt 0:02:30]} 8. Bg2 {[%emt 0:04:30]} O-O {[%emt 0:00:30]} 9. Nge2 {[%emt 0:00:30]} Nd4 {[%emt 0:02:30]} 10. Ng3 {[%emt 0:06:30]} Be6 {[%emt 0:01:30]} 11. Nd5 {[%emt 0:00:30]} Bxd5 {[%emt 0:06:30]} 12. exd5 {[%emt 0:01:30]} f5 {[%emt 0:00:30]} 13. gxf5 {[%emt 0:00:30]} Nexf5 {[%emt 0:00:00]} 14. Nxf5 {[%emt 0:03:30]} Nxf5 {[%emt 0:01:00]} 15. Bg5 {[%emt 0:01:30]} Bf6 {[%emt 0:00:30]} 16. Bxf6 {[%emt 0:03:30]} Qxf6 {[%emt 0:00:30]} 17. Be4 {[%emt 0:00:30]} Nd4 {[%emt 0:00:30]} 18. Rh2 {[%emt 0:01:30]} Qf4 {[%emt 0:04:30]} 19. Qxf4 {[%emt 0:04:30]} Rxf4 {[%emt 0:00:00]} 20. Kd2 {[%emt 0:03:30]} Raf8 {[%emt 0:00:00]} 21. c3 {[%emt 0:00:30]} Rxe4 {[%emt 0:01:30]} 22. cxd4 {[%emt 0:00:00]} Rxd4 {[%emt 0:00:00]} 23. Ke3 {[%emt 0:01:00]} Rxd5 {[%emt 0:00:00]} 24. Rc1 {[%emt 0:00:30]} Rd4 {[%emt 0:00:30]} 25. a3 {[%emt 0:00:30]} b6 {[%emt 0:00:30]} 26. f3 {[%emt 0:01:30]} Rdf4 {[%emt 0:00:00]} 27. Rf2 {[%emt 0:00:30]} d5 {[%emt 0:00:00]} 28. b4 {[%emt 0:01:30]} cxb4 {[%emt 0:00:00]} 29. axb4 {[%emt 0:00:00]} Rxb4 {[%emt 0:01:00]} 30. Rc7 {[%emt 0:01:00]} Rf7 {[%emt 0:00:00]} 31. Rc8+ {[%emt 0:00:00]} Kg7 {[%emt 0:00:00]} 32. Rd8 {[%emt 0:00:00]} Rd4 {[%emt 0:01:30]} 33. Re8 {[%emt 0:00:00]} Kf6 {[%emt 0:01:30]} 34. Rc2 {[%emt 0:00:00]} Rf4 {[%emt 0:01:30]} 35. Rc6+ {[%emt 0:01:30]} Kg7 {[%emt 0:00:00]} 36. Rxe5 {[%emt 0:00:30]} Rxf3+ {[%emt 0:00:00]} 37. Kd4 {[%emt 0:00:30]} Rd7 {[%emt 0:02:30]} 38. Rc3 {[%emt 0:02:30]} Rxh3 {[%emt 0:00:30]} 0-1

[Event "Istanbul Open 2019"]
[Site "Istanbul"]
[Date "2019.08.28"]
[Round "4.13"]
[White "Grigoriev, Armen"]
[Black "Bayramov, Elvin"]
[Result "1/2-1/2"]
[ECO "A49"]
[WhiteElo "2017"]
[BlackElo "2198"]
[Annotator "ChessBase"]
[PlyCount "127"]
[EventDate "2019.08.26"]
[EventType "swiss"]
[EventCountry "TUR"]
[SourceTitle "playchess.com"]
[Source "ChessBase"]
[SourceQuality "1"]
[TimeControl "5400+30"]

1. d4 Nf6 2. Nf3 g6 3. g3 Bg7 4. Bg2 O-O 5. O-O d6 6. Nc3 c6 7. e4 Qc7 8. h3 e5 9. Bg5 exd4 10. Nxd4 Nbd7 11. Qd2 Ne5 12. b3 Re8 13. Rad1 a6 14. g4 Ned7 15. Bf4 Nc5 16. f3 Nfd7 17. Nde2 Be5 18. Be3 Qa5 19. f4 Bg7 20. Bd4 Bf8 21. a4 b5 22. axb5 axb5 23. Ng3 Bb7 24. Kh2 Ne6 25. Bg1 Bg7 26. Nce2 Qxd2 27. Rxd2 Bf8 28. e5 d5 29. c4 Bb4 30. Rc2 g5 31. fxg5 Nxe5 32. cxd5 cxd5 33. Nh5 Rec8 34. Rfc1 Rxc2 35. Rxc2 Nxg5 36. Nf6+ Kg7 37. Bxd5 Nef3+ 38. Kh1 Bxd5 39. Nxd5 Bd6 40. Rc6 Be5 41. Ne3 Nxh3 42. Nf5+ Kh8 43. Be3 Nhg5 44. Kg2 f6 45. Bxg5 Nxg5 46. Ned4 b4 47. Rc4 Kg8 48. Rxb4 Ra2+ 49. Kf1 Ne4 50. Rb7 Rf2+ 51. Ke1 Bxd4 52. Nxd4 Rg2 53. Nf5 Nc5 54. Rb8+ Kf7 55. b4 Nd3+ 56. Kd1 Nf2+ 57. Kc1 Nxg4 58. b5 Ke6 {[%emt 1:38:00]} 59. Nd4+ {[%emt 1:55:49]} Kd5 {[%emt 0:00:30]} 60. b6 {[%emt 0:00:30]} Ne5 {[%emt 0:03:47]} 61. b7 {[%emt 0:01:14]} Nd3+ {[%emt 0:01:09]} 62. Kd1 {[%emt 0:00:17]} Rb2 {[%emt 0:00:48]} 63. Rd8+ {[%emt 0:00:16]} Ke4 {[%emt 0:00:26]} 64. b8=Q {[%emt 0:00:38]} 1/2-1/2

[Event "Istanbul Open 2019"]
[Site "Istanbul"]
[Date "2019.08.28"]
[Round "4.14"]
[White "Mohannad, Farhan"]
[Black "Yasin, Hur"]
[Result "1-0"]
[ECO "D35"]
[WhiteElo "2151"]
[BlackElo "1906"]
[Annotator "NA"]
[PlyCount "87"]
[EventDate "2019.08.26"]
[EventType "swiss"]
[EventCountry "TUR"]
[SourceTitle "playchess.com"]
[Source "ChessBase"]
[SourceQuality "1"]
[TimeControl "5400+30"]

1. d4 {[%emt 0:00:30]} Nf6 {[%emt 0:12:30]} 2. c4 {[%emt 0:00:00]} e6 {[%emt 0:00:30]} 3. Nf3 {[%emt 0:00:00]} Bb4+ {[%emt 0:00:00]} 4. Bd2 {[%emt 0:00:00]} Be7 {[%emt 0:00:00]} 5. Nc3 {[%emt 0:00:00]} d5 {[%emt 0:00:30]} 6. cxd5 {[%emt 0:01:30]} exd5 {[%emt 0:00:00]} 7. Bg5 {[%emt 0:00:30]} O-O {[%emt 0:00:00]} 8. e3 {[%emt 0:00:00]} c6 {[%emt 0:06:30]} 9. Bd3 {[%emt 0:00:00]} Ne4 {[%emt 0:01:30]} 10. Bxe7 {[%emt 0:00:30]} Qxe7 {[%emt 0:00:00]} 11. Bxe4 {[%emt 0:00:30]} dxe4 {[%emt 0:00:00]} 12. Nd2 {[%emt 0:00:00]} f5 {[%emt 0:02:30]} 13. O-O {[%emt 0:01:00]} Be6 {[%emt 0:00:30]} 14. f3 {[%emt 0:01:30]} exf3 {[%emt 0:00:30]} 15. Qxf3 {[%emt 0:03:30]} Nd7 {[%emt 0:00:30]} 16. a3 {[%emt 0:15:30]} Nf6 {[%emt 0:00:30]} 17. Rae1 {[%emt 0:00:30]} Qd6 {[%emt 0:01:30]} 18. Qf4 {[%emt 0:03:30]} Rad8 {[%emt 0:03:30]} 19. Qxd6 {[%emt 0:01:30]} Rxd6 {[%emt 0:00:30]} 20. Na4 {[%emt 0:00:30]} b6 {[%emt 0:01:30]} 21. Rc1 {[%emt 0:05:30]} c5 {[%emt 0:09:30]} 22. Nf3 {[%emt 0:01:30]} c4 {[%emt 0:02:30]} 23. Nc3 {[%emt 0:05:30]} a6 {[%emt 0:00:30]} 24. Rcd1 {[%emt 0:01:30]} Re8 {[%emt 0:03:30]} 25. Rfe1 {[%emt 0:03:30]} Bc8 {[%emt 0:01:30]} 26. Ne5 {[%emt 0:04:30]} b5 {[%emt 0:00:30]} 27. a4 {[%emt 0:00:30]} Rb6 {[%emt 0:01:30]} 28. axb5 {[%emt 0:00:30]} axb5 {[%emt 0:00:30]} 29. Ra1 {[%emt 0:00:00]} Be6 {[%emt 0:06:30]} 30. Ra5 {[%emt 0:04:00]} Reb8 {[%emt 0:04:30]} 31. d5 {[%emt 0:03:30]} Bd7 {[%emt 0:05:30]} 32. Na2 {[%emt 0:05:30]} Re8 {[%emt 0:02:30]} 33. Nxd7 {[%emt 0:01:30]} Nxd7 {[%emt 0:00:30]} 34. Nb4 {[%emt 0:00:30]} Nf6 {[%emt 0:00:30]} 35. Rd1 {[%emt 0:11:30]} Rxe3 {[%emt 0:04:30]} 36. d6 {[%emt 0:00:30]} Rb7 {[%emt 0:01:30]} 37. Nc6 {[%emt 0:03:30]} g6 {[%emt 0:02:30]} 38. Nb4 {[%emt 0:05:16]} Rb3 {[%emt 0:00:30]} 39. Nd5 {[%emt 0:01:47]} Nd7 {[%emt 0:00:30]} 40. Re1 {[%emt 0:01:57]} Rd3 {[%emt 0:08:31]} 41. Re8+ {[%emt 0:03:35]} Nf8 {[%emt 0:00:44]} 42. Re7 {[%emt 0:03:31]} Rb8 {[%emt 0:03:19]} 43. Nf6+ {[%emt 0:00:31]} Kh8 {[%emt 0:00:02]} 44. Raa7 {[%emt 0:00:14]} 1-0

[Event "Istanbul Open 2019"]
[Site "Istanbul"]
[Date "2019.08.28"]
[Round "4.15"]
[White "Menekse, Tuncay"]
[Black "Kaya, Serkan"]
[Result "1-0"]
[ECO "D79"]
[WhiteElo "1684"]
[BlackElo "1549"]
[Annotator "NA"]
[PlyCount "105"]
[EventDate "2019.08.26"]
[EventType "swiss"]
[EventCountry "TUR"]
[SourceTitle "playchess.com"]
[Source "ChessBase"]
[SourceQuality "1"]
[TimeControl "5400+30"]

1. c4 {[%emt 0:03:30]} g6 {[%emt 0:00:30]} 2. g3 {[%emt 0:00:30]} Bg7 {[%emt 0:00:00]} 3. Nc3 {[%emt 0:00:00]} Nf6 {[%emt 0:00:00]} 4. Bg2 {[%emt 0:00:00]} c6 {[%emt 0:00:30]} 5. d4 {[%emt 0:01:30]} d5 {[%emt 0:00:30]} 6. cxd5 {[%emt 0:00:30]} cxd5 {[%emt 0:00:30]} 7. Qb3 {[%emt 0:00:30]} e6 {[%emt 0:01:30]} 8. Nf3 {[%emt 0:04:30]} Nc6 {[%emt 0:00:30]} 9. O-O {[%emt 0:00:30]} O-O {[%emt 0:00:30]} 10. a3 {[%emt 0:00:30]} Ne4 {[%emt 0:02:30]} 11. e3 {[%emt 0:00:30]} Nxc3 {[%emt 0:00:30]} 12. Qxc3 {[%emt 0:00:30]} Re8 {[%emt 0:02:30]} 13. Ne5 {[%emt 0:05:30]} Nxe5 {[%emt 0:00:30]} 14. dxe5 {[%emt 0:00:00]} Bd7 {[%emt 0:00:00]} 15. f4 {[%emt 0:00:00]} Qb6 {[%emt 0:01:00]} 16. Qd4 {[%emt 0:01:30]} Rec8 {[%emt 0:00:30]} 17. Bd2 {[%emt 0:00:00]} Rc4 {[%emt 0:00:30]} 18. Qxb6 {[%emt 0:00:00]} axb6 {[%emt 0:00:30]} 19. Bc3 {[%emt 0:00:30]} Bf8 {[%emt 0:00:30]} 20. Rfc1 {[%emt 0:01:30]} Rac8 {[%emt 0:01:30]} 21. Bf1 {[%emt 0:00:30]} R4c7 {[%emt 0:00:30]} 22. Bd3 {[%emt 0:00:30]} b5 {[%emt 0:02:30]} 23. Bd2 {[%emt 0:00:30]} Rxc1+ {[%emt 0:02:30]} 24. Rxc1 {[%emt 0:04:30]} Rxc1+ {[%emt 0:02:30]} 25. Bxc1 {[%emt 0:00:30]} b4 {[%emt 0:00:00]} 26. axb4 {[%emt 0:00:30]} Bxb4 {[%emt 0:00:00]} 27. Kf2 {[%emt 0:00:30]} Kf8 {[%emt 0:00:30]} 28. Ke2 {[%emt 0:00:00]} Ke7 {[%emt 0:00:30]} 29. Bd2 {[%emt 0:00:00]} Bc5 {[%emt 0:00:30]} 30. Bc3 {[%emt 0:00:30]} h6 {[%emt 0:05:30]} 31. b4 {[%emt 0:01:30]} Bb6 {[%emt 0:00:00]} 32. Bd4 {[%emt 0:00:30]} Bxd4 {[%emt 0:00:00]} 33. exd4 {[%emt 0:00:30]} b5 {[%emt 0:00:30]} 34. Kf3 {[%emt 0:00:00]} h5 {[%emt 0:01:30]} 35. h3 {[%emt 0:00:00]} Kf8 {[%emt 0:01:30]} 36. g4 {[%emt 0:05:30]} hxg4+ {[%emt 0:00:30]} 37. Kxg4 {[%emt 0:00:30]} Kg7 {[%emt 0:00:00]} 38. Kg5 {[%emt 0:00:30]} Be8 {[%emt 0:00:00]} 39. Be2 {[%emt 0:00:00]} Bd7 {[%emt 0:00:30]} 40. Bg4 {[%emt 0:01:00]} Be8 {[%emt 0:01:30]} 41. h4 {[%emt 0:00:30]} Bd7 {[%emt 0:00:30]} 42. Bf3 {[%emt 0:01:30]} Be8 {[%emt 0:01:30]} 43. f5 {[%emt 0:09:30]} Bc6 {[%emt 0:00:30]} 44. fxe6 {[%emt 0:01:30]} fxe6 {[%emt 0:00:30]} 45. Be2 {[%emt 0:00:00]} Bd7 {[%emt 0:00:30]} 46. Bd1 {[%emt 0:09:00]} Be8 {[%emt 0:09:30]} 47. Bc2 {[%emt 0:08:30]} Bf7 {[%emt 0:00:30]} 48. Bb1 {[%emt 0:00:30]} Be8 {[%emt 0:00:30]} 49. Bd3 {[%emt 0:00:00]} Kh7 {[%emt 0:01:30]} 50. h5 {[%emt 0:00:00]} Kg7 {[%emt 0:00:30]} 51. Bxg6 {[%emt 0:00:30]} Bxg6 {[%emt 0:01:30]} 52. hxg6 {[%emt 0:00:30]} Kg8 {[%emt 0:00:00]} 53. Kf6 {[%emt 0:00:30]} 1-0

[Event "Istanbul Open 2019"]
[Site "Istanbul"]
[Date "2019.08.28"]
[Round "4.16"]
[White "Kamis, Enes Yusuf"]
[Black "Hakkaki Fard, Pedram"]
[Result "0-1"]
[ECO "C47"]
[WhiteElo "1644"]
[BlackElo "1720"]
[Annotator "NA"]
[PlyCount "76"]
[EventDate "2019.08.26"]
[EventType "swiss"]
[EventCountry "TUR"]
[SourceTitle "playchess.com"]
[Source "ChessBase"]
[SourceQuality "1"]
[TimeControl "5400+30"]

1. e4 e5 2. Nf3 Nf6 3. Nc3 Nc6 4. a3 a6 5. d4 exd4 6. Nxd4 Bc5 7. Be3 Nxd4 8. Bxd4 Qe7 9. Bc4 O-O 10. O-O Bxd4 11. Qxd4 d6 12. Rfe1 Ng4 13. f3 Ne5 14. Nd5 Qd8 15. Rad1 Be6 16. Be2 Bxd5 17. exd5 Re8 18. f4 Nd7 19. Bd3 Qf6 20. Qxf6 Nxf6 21. c4 Kf8 22. g3 h5 23. h3 Rab8 24. Kf2 Rxe1 25. Rxe1 b5 26. b4 a5 27. cxb5 axb4 28. axb4 Nxd5 29. Re4 Ra8 30. Rc4 Ra2+ 31. Kf3 Ra3 32. Rd4 Nxb4 33. Rxb4 Rxd3+ 34. Kf2 Ke7 35. b6 cxb6 36. Rxb6 h4 37. Rb7+ Ke6 38. g4 Rxh3 {[%emt 1:46:46]} 0-1

[Event "Istanbul Open 2019"]
[Site "Istanbul"]
[Date "2019.08.28"]
[Round "4.17"]
[White "Pektas, Gokdeniz"]
[Black "Gulcu, Hakan"]
[Result "1-0"]
[ECO "D36"]
[WhiteElo "1652"]
[BlackElo "1653"]
[Annotator "NA"]
[PlyCount "61"]
[EventDate "2019.08.26"]
[EventType "swiss"]
[EventCountry "TUR"]
[SourceTitle "playchess.com"]
[Source "ChessBase"]
[SourceQuality "1"]
[TimeControl "5400+30"]

1. d4 {[%emt 0:03:30]} Nf6 {[%emt 0:00:30]} 2. c4 {[%emt 0:01:30]} e6 {[%emt 0:00:00]} 3. Nc3 {[%emt 0:00:30]} d5 {[%emt 0:00:00]} 4. cxd5 {[%emt 0:01:30]} exd5 {[%emt 0:00:30]} 5. Bg5 {[%emt 0:00:00]} c6 {[%emt 0:00:30]} 6. Qc2 {[%emt 0:00:00]} Be6 {[%emt 0:03:30]} 7. e3 {[%emt 0:00:00]} Nbd7 {[%emt 0:00:30]} 8. Bd3 {[%emt 0:00:00]} Be7 {[%emt 0:00:00]} 9. h3 {[%emt 0:00:00]} O-O {[%emt 0:06:00]} 10. Nf3 {[%emt 0:00:00]} Re8 {[%emt 0:02:30]} 11. g4 {[%emt 0:00:30]} h6 {[%emt 0:16:30]} 12. Bf4 {[%emt 0:01:30]} a6 {[%emt 0:00:30]} 13. O-O-O {[%emt 0:00:30]} c5 {[%emt 0:03:30]} 14. Rdg1 {[%emt 0:00:30]} c4 {[%emt 0:00:30]} 15. Bf5 {[%emt 0:00:00]} Bxf5 {[%emt 0:10:30]} 16. Qxf5 {[%emt 0:01:00]} g6 {[%emt 0:00:30]} 17. Qc2 {[%emt 0:00:30]} Kg7 {[%emt 0:18:30]} 18. g5 {[%emt 0:00:30]} hxg5 {[%emt 0:00:30]} 19. Nxg5 {[%emt 0:00:30]} Nf8 {[%emt 0:02:30]} 20. h4 {[%emt 0:04:30]} Nh5 {[%emt 0:03:30]} 21. Be5+ {[%emt 0:00:00]} Bf6 {[%emt 0:01:30]} 22. Bxf6+ {[%emt 0:02:00]} Kxf6 {[%emt 0:00:30]} 23. Qd1 {[%emt 0:00:00]} Kg7 {[%emt 0:04:30]} 24. Qf3 {[%emt 0:01:00]} f6 {[%emt 0:00:30]} 25. Nh3 {[%emt 0:00:30]} Kh7 {[%emt 0:00:30]} 26. Nxd5 {[%emt 0:13:30]} Qd6 {[%emt 0:06:29]} 27. e4 {[%emt 0:08:30]} Kh6 {[%emt 0:06:06]} 28. Rg4 {[%emt 0:05:30]} Rad8 {[%emt 0:02:40]} 29. Rhg1 {[%emt 0:03:30]} f5 {[%emt 0:01:04]} 30. exf5 {[%emt 0:00:00]} Qxd5 {[%emt 0:00:18]} 31. Rxg6+ {[%emt 0:00:00]} 1-0

[Event "Istanbul Open 2019"]
[Site "Istanbul"]
[Date "2019.08.28"]
[Round "4.18"]
[White "Goekkaya, Murat Bora"]
[Black "Can, Ilhan"]
[Result "1/2-1/2"]
[ECO "A22"]
[WhiteElo "1594"]
[BlackElo "1683"]
[Annotator "NA RC"]
[PlyCount "121"]
[EventDate "2019.08.26"]
[EventType "swiss"]
[EventCountry "TUR"]
[SourceTitle "playchess.com"]
[Source "ChessBase"]
[SourceQuality "1"]
[TimeControl "5400+30"]

1. c4 e5 2. Nc3 Nf6 3. g3 Be7 4. Bg2 d6 5. Nf3 c6 6. O-O O-O 7. b3 Re8 8. Bb2 Bf8 9. d3 h6 10. Qd2 Nbd7 11. e4 Nc5 12. b4 Ncd7 13. Rfd1 Qc7 14. Rac1 Qb8 15. h3 a5 16. a3 g6 17. d4 axb4 18. axb4 Bg7 19. d5 c5 20. b5 Nb6 21. Qd3 Nh5 22. Nh4 Bd7 23. Rf1 Qc7 24. Rc2 Bf6 25. Ne2 Qd8 26. Nf3 Qe7 27. Nh2 Ra4 28. Ng4 Bg7 29. Ne3 Rea8 30. f4 Ra2 31. fxe5 Rxb2 32. Rxb2 Qxe5 33. Rd2 Nxg3 34. Nxg3 Qxg3 35. Qe2 Be5 36. Qf3 Qh2+ 37. Kf2 Bd4 38. Ke2 Rf8 39. Kd3 Bxe3 40. Qxe3 Kg7 41. Qf4 Qxf4 42. Rxf4 Ra8 43. Rc2 Be8 44. h4 Nd7 45. Kc3 Ra4 46. Bf1 Ne5 47. Rcf2 Bd7 48. Rf6 Bf5 49. Rxd6 Bxe4 50. Kb3 Rb4+ 51. Kc3 Rb1 52. Re2 f5 53. Rxe4 fxe4 54. Re6 Rxf1 55. Rxe5 Rf7 56. Rxe4 g5 57. h5 Rf3+ 58. Kd2 Rf6 59. Ke3 {[%emt 1:57:25]} Kf7 {[%emt 1:45:16]} 60. Re5 {[%emt 0:00:30]} g4 {[%emt 0:00:40]} 61. Re4 {[%emt 0:00:30]} 1/2-1/2

[Event "Istanbul Open 2019"]
[Site "Istanbul"]
[Date "2019.08.28"]
[Round "4.19"]
[White "Yalcinkaya, Efe"]
[Black "Demirel, Ali Yagmur"]
[Result "1-0"]
[ECO "C02"]
[WhiteElo "1542"]
[BlackElo "1714"]
[Annotator "NA"]
[PlyCount "81"]
[EventDate "2019.08.26"]
[EventType "swiss"]
[EventCountry "TUR"]
[SourceTitle "playchess.com"]
[Source "ChessBase"]
[SourceQuality "1"]
[TimeControl "5400+30"]

1. e4 {[%emt 0:00:30]} e6 {[%emt 0:00:30]} 2. d4 {[%emt 0:00:00]} d5 {[%emt 0:00:00]} 3. e5 {[%emt 0:00:00]} c5 {[%emt 0:00:00]} 4. c3 {[%emt 0:00:30]} Nc6 {[%emt 0:00:30]} 5. Nf3 {[%emt 0:00:30]} Bd7 {[%emt 0:00:00]} 6. a3 {[%emt 0:01:30]} f6 {[%emt 0:00:00]} 7. exf6 {[%emt 0:03:30]} Nxf6 {[%emt 0:00:30]} 8. Bd3 {[%emt 0:02:30]} Bd6 {[%emt 0:01:30]} 9. O-O {[%emt 0:02:30]} O-O {[%emt 0:00:30]} 10. Re1 {[%emt 0:02:30]} Qc7 {[%emt 0:01:30]} 11. Qe2 {[%emt 0:04:30]} Ng4 {[%emt 0:08:30]} 12. h3 {[%emt 0:11:30]} e5 {[%emt 0:01:30]} 13. dxc5 {[%emt 0:05:30]} Bxc5 {[%emt 0:01:30]} 14. hxg4 {[%emt 0:00:00]} Bxg4 {[%emt 0:00:30]} 15. Nbd2 {[%emt 0:03:00]} Rae8 {[%emt 0:00:30]} 16. Bc4 {[%emt 0:05:30]} Qf7 {[%emt 0:29:30]} 17. Ba2 {[%emt 0:11:30]} Rd8 {[%emt 0:01:30]} 18. b4 {[%emt 0:03:30]} Bd6 {[%emt 0:06:30]} 19. Ng5 {[%emt 0:09:30]} Qh5 {[%emt 0:01:30]} 20. Bxd5+ {[%emt 0:01:30]} Kh8 {[%emt 0:01:30]} 21. Ndf3 {[%emt 0:11:31]} e4 {[%emt 0:00:30]} 22. Qxe4 {[%emt 0:07:14]} Bxf3 {[%emt 0:04:30]} 23. Nxf3 {[%emt 0:00:30]} Rde8 {[%emt 0:02:30]} 24. Be6 {[%emt 0:01:19]} Re7 {[%emt 0:09:30]} 25. Qd5 {[%emt 0:02:47]} Bh2+ {[%emt 0:04:30]} 26. Kf1 {[%emt 0:01:35]} Be5 {[%emt 0:02:30]} 27. Nxe5 {[%emt 0:01:03]} Qh1+ {[%emt 0:01:30]} 28. Ke2 {[%emt 0:00:10]} Qh4 {[%emt 0:00:30]} 29. Nf3 {[%emt 0:01:39]} Qf6 {[%emt 0:00:30]} 30. Kf1 {[%emt 0:00:14]} Qxc3 {[%emt 0:00:30]} 31. Bg5 {[%emt 0:00:36]} Ree8 {[%emt 0:00:30]} 32. Qc4 {[%emt 0:00:51]} Rxf3 {[%emt 0:00:30]} 33. Qxc3 {[%emt 0:00:27]} Rxc3 {[%emt 0:00:30]} 34. Bd7 {[%emt 0:00:26]} Rf8 {[%emt 0:00:30]} 35. b5 {[%emt 0:00:15]} Nd4 {[%emt 0:00:00]} 36. Be7 {[%emt 0:00:29]} Rg8 {[%emt 0:01:00]} 37. Rac1 {[%emt 0:00:40]} Nc2 {[%emt 0:00:30]} 38. Bf5 {[%emt 0:00:28]} Ne3+ {[%emt 0:00:30]} 39. fxe3 {[%emt 0:00:08]} Rb3 {[%emt 0:00:00]} 40. Be6 {[%emt 0:00:10]} Re8 {[%emt 0:00:00]} 41. Bxb3 {[%emt 0:00:37]} 1-0

[Event "Istanbul Open 2019"]
[Site "Istanbul"]
[Date "2019.08.29"]
[Round "5.1"]
[White "Eren, Ataberk"]
[Black "Kamer, Kayra"]
[Result "0-1"]
[ECO "E70"]
[WhiteElo "2254"]
[BlackElo "2306"]
[Annotator "NA"]
[PlyCount "82"]
[EventDate "2019.08.26"]
[EventType "swiss"]
[EventCountry "TUR"]
[SourceTitle "playchess.com"]
[Source "ChessBase"]
[SourceQuality "1"]
[TimeControl "5400+30"]

1. d4 Nf6 2. c4 g6 3. Nc3 Bg7 4. e4 d6 5. Nge2 O-O {[%emt 1:31:18] 0$} 6. Ng3 h5 7. Be2 h4 8. Nf1 h3 9. gxh3 c5 10. d5 e6 11. h4 exd5 12. exd5 Re8 13. Ng3 Nbd7 14. Bg5 Ne5 15. O-O Bh3 16. Re1 Qd7 17. Qd2 {[%emt 1:33:44] k} Nfg4 18. Nd1 f6 19. Bf4 g5 20. hxg5 fxg5 21. Bxg5 Rf8 22. f4 Nf7 23. Bxg4 Qxg4 24. Be7 Bd4+ 25. Ne3 Qxf4 26. Bxf8 Rxf8 27. Qf2 Ne5 28. Qxf4 Rxf4 29. Kh1 Nd3 30. Re2 Nf2+ 31. Rxf2 Rxf2 32. Re1 Rxb2 33. Ngf5 Be5 34. Nh6+ Kh7 35. Nhg4 Bd4 36. a4 Ra2 37. a5 Kg6 38. Rg1 Kh5 39. Rg3 Ra1+ 40. Rg1 Rxg1+ 41. Kxg1 Bxg4 0-1

[Event "Istanbul Open 2019"]
[Site "Istanbul"]
[Date "2019.08.29"]
[Round "5.2"]
[White "Arat, Ufuk Sezen"]
[Black "Yaran, Siar"]
[Result "1/2-1/2"]
[ECO "D37"]
[WhiteElo "2390"]
[BlackElo "2209"]
[Annotator "RC"]
[PlyCount "114"]
[EventDate "2019.08.26"]
[EventType "swiss"]
[EventCountry "TUR"]
[SourceTitle "playchess.com"]
[Source "ChessBase"]
[SourceQuality "1"]
[TimeControl "5400+30"]

1. d4 Nf6 2. c4 e6 3. Nc3 d5 4. Nf3 Be7 5. Bf4 O-O 6. e3 c5 7. dxc5 Bxc5 8. a3 Nc6 {[%emt 0:57:00] 0 Î} 9. Be2 dxc4 10. Bxc4 Qxd1+ 11. Rxd1 Rd8 12. Ke2 Bd7 13. g4 Be8 14. g5 Nd7 15. h4 Nb6 16. Ba2 Rxd1 17. Rxd1 Rd8 18. Rxd8 Nxd8 19. h5 Be7 20. h6 gxh6 21. gxh6 Bd7 22. Ne5 Be8 23. Ng4 f6 24. e4 Kf7 25. Bc7 Bd7 26. e5 f5 27. Nf6 Bxf6 28. exf6 Nc6 29. Nb5 Nc8 30. Ke3 Kxf6 31. Nd4 N8e7 32. f4 Ng8 33. Nxc6 Bxc6 34. Bd8+ Kf7 35. Bg5 Nf6 36. Kd4 Ne4 37. Bd8 Nf6 38. Ke5 Ne4 39. Kd4 Nf2 40. Bc4 Be4 41. a4 Ng4 42. Bg5 Kg6 43. Bxe6 Nxh6 44. b4 Ng4 45. b5 Nf2 46. a5 Nh3 47. Be7 Nxf4 48. Bd7 Nd5 49. Be8+ Kg7 50. Bd6 Nf6 51. Be5 Kf8 52. Bxf6 Kxe8 53. b6 a6 54. Ke3 Kf7 55. Bh4 Ke6 56. Kf4 h5 57. Be1 Bc2 1/2-1/2

[Event "Istanbul Open 2019"]
[Site "Istanbul"]
[Date "2019.08.29"]
[Round "5.3"]
[White "Darban, Morteza"]
[Black "Nuri, Murad"]
[Result "1/2-1/2"]
[ECO "C42"]
[WhiteElo "2280"]
[BlackElo "2291"]
[Annotator "NA"]
[PlyCount "26"]
[EventDate "2019.08.26"]
[EventType "swiss"]
[EventCountry "TUR"]
[SourceTitle "playchess.com"]
[Source "ChessBase"]
[SourceQuality "1"]
[TimeControl "5400+30"]

1. e4 e5 2. Nf3 Nf6 3. Nxe5 d6 4. Nf3 Nxe4 5. Qe2 Qe7 6. d3 Nf6 7. Bg5 {[%emt 0:53:30]} Qxe2+ {[%emt 0:55:30]} 8. Bxe2 {[%emt 0:00:30]} Be7 {[%emt 0:00:30]} 9. Nc3 {[%emt 0:00:30]} c6 {[%emt 0:00:30]} 10. O-O-O {[%emt 0:00:30]} Nbd7 {[%emt 0:00:30]} 11. h3 {[%emt 0:00:30]} O-O {[%emt 0:00:30]} 12. Ne4 {[%emt 0:01:30]} d5 {[%emt 0:00:30]} 13. Nxf6+ {[%emt 0:00:30]} Bxf6 {[%emt 0:00:30]} 1/2-1/2